lending/lending_fUSD_20260102
["ID","MTS","AMOUNT","RATE_DAILY","PERIOD"]
[400316947,1767355892697,-500.0,0.00043151,120]
[400316948,1767355892706,-500.0,0.00043151,120]
[400316949,1767355892716,-150.0,0.00043151,120]
[400316950,1767355892726,-500.0,0.00043151,120]
[400316951,1767355892736,-500.0,0.00043151,120]
[400316952,1767355892745,-283.50067113,0.00043151,120]
[400316953,1767355892754,-211.87702314,0.00043151,120]
[400316954,1767355892763,-500.0,0.00043151,120]
[400316955,1767355892773,-150.0,0.00043151,120]
[400316956,1767355892783,-500.0,0.00043151,120]
[400316957,1767355892793,-150.0,0.00043151,120]
[400316958,1767355892802,-500.0,0.00043151,120]
[400316959,1767355892812,-218.77119988,0.00043151,120]
[400316960,1767355892821,-500.0,0.00043151,120]
[400316961,1767355892831,-150.0,0.00043151,120]
[400316962,1767355892840,-194.80349152,0.00043151,120]
[400316963,1767355892850,-150.0,0.00043151,120]
[400316964,1767355892859,-500.0,0.00043151,120]
[400316965,1767355892869,-277.4596707,0.00043151,120]
[400316966,1767355892878,-150.0,0.00043151,120]
[400316967,1767355893025,-160.65917652,0.00043151,120]
[400316968,1767355893035,-152.97183225,0.00043151,120]
[400316969,1767355893045,-150.0,0.00043151,120]
[400316970,1767355893054,-165.39728925,0.00043151,120]
[400316971,1767355893064,-150.0,0.00043151,120]
[400316972,1767355893073,-150.0,0.00043151,120]
[400316973,1767355893083,-150.0,0.00043151,120]
[400316974,1767355893094,-150.0,0.00043151,120]
[400316975,1767355893103,-500.0,0.00043151,120]
[400316976,1767355893113,-150.0,0.00043151,120]
[400316977,1767355893122,-153.47056969,0.00043151,120]
[400316978,1767355893131,-500.0,0.00043151,120]
[400316979,1767355893140,-500.0,0.00043151,120]
[400316980,1767355893150,-254.04426179,0.00043151,120]
[400316981,1767355893159,-150.0,0.00043151,120]
[400316982,1767355893169,-500.0,0.00043151,120]
[400316983,1767355893179,-500.0,0.00043151,120]
[400316984,1767355893189,-201.93737939,0.00043151,120]
[400316985,1767355893199,-421.15549194,0.00043151,120]
[400316986,1767355893210,-150.0,0.00043151,120]
[400316987,1767355893220,-150.82776768,0.00043151,120]
[400316988,1767355893230,-150.0,0.00043151,120]
[400316989,1767355893240,-288.65037209,0.00043151,120]
[400316990,1767355893249,-500.0,0.00043151,2]
[400316991,1767355893259,-500.0,0.00043151,2]
[400316992,1767355893268,-500.0,0.00043151,2]
[400316993,1767355893278,-500.0,0.00043151,2]
[400316994,1767355893287,-473.53401681,0.00043151,2]
[400316995,1767355893297,-275.26777777,0.00043151,120]
[400316996,1767355893306,-482.0,0.00043151,120]
[400316997,1767355893315,-1052.0,0.00043151,120]
[400316998,1767355893324,-482.0,0.00043151,120]
[400316999,1767355893333,-1052.0,0.00043151,120]
[400317000,1767355893343,-482.0,0.00043151,120]
[400317001,1767355893352,-1052.0,0.00043151,120]
[400317002,1767355893361,-482.0,0.00043151,120]
[400317003,1767355893371,-1052.0,0.00043151,120]
[400317004,1767355893380,-482.0,0.00043151,120]
[400317005,1767355893389,-500.0,0.00043151,120]
[400317006,1767355893399,-500.0,0.00043151,120]
[400317007,1767355893407,-1052.0,0.00043151,120]
[400317008,1767355893417,-482.0,0.00043151,120]
[400317009,1767355893427,-1052.0,0.00043151,120]
[400317010,1767355893437,-500.0,0.00043151,120]
[400317011,1767355893446,-482.0,0.00043151,120]
[400317012,1767355893455,-500.0,0.00043151,120]
[400317013,1767355893464,-1052.0,0.00043151,120]
[400317014,1767355893473,-500.0,0.00043151,120]
[400317015,1767355893482,-274.65822694,0.00043151,120]
[400317016,1767355893492,-482.0,0.00043151,120]
[400317017,1767355893501,-500.0,0.00043151,120]
[400317018,1767355893510,-1052.0,0.00043151,120]
[400317019,1767355893520,-500.0,0.00043151,120]
[400317020,1767355893531,-482.0,0.00043151,120]
[400317021,1767355893541,-500.0,0.00043151,120]
[400317022,1767355893551,-1052.0,0.00043151,120]
[400317023,1767355893560,-482.0,0.00043151,120]
[400317024,1767355893571,-500.0,0.00043151,120]
[400317025,1767355893581,-500.0,0.00043151,120]
[400317026,1767355893591,-1052.0,0.00043151,120]
[400317027,1767355893600,-482.0,0.00043151,120]
[400317028,1767355893610,-500.0,0.00043151,120]
[400317029,1767355893619,-500.0,0.00043151,120]
[400317030,1767355893629,-1052.0,0.00043151,120]
[400317031,1767355893639,-482.0,0.00043151,120]
[400317032,1767355893649,-500.0,0.00043151,120]
[400317033,1767355893660,-500.0,0.00043151,120]
[400317034,1767355893669,-1052.0,0.00043151,120]
[400317035,1767355893679,-482.0,0.00043151,120]
[400317036,1767355893689,-500.0,0.00043151,120]
[400317037,1767355893698,-1052.0,0.00043151,120]
[400317038,1767355893707,-482.0,0.00043151,120]
[400317039,1767355893716,-554.69842501,0.00043151,120]
[400317040,1767355893726,-1052.0,0.00043151,120]
[400317041,1767355893735,-500.0,0.00043151,120]
[400317042,1767355893744,-482.0,0.00043151,120]
[400317043,1767355893753,-1052.0,0.00043151,120]
[400317044,1767355893763,-500.0,0.00043151,120]
[400317045,1767355893773,-482.0,0.00043151,120]
[400317046,1767355893782,-1052.0,0.00043151,120]
[400317047,1767355893791,-500.0,0.00043151,120]
[400317048,1767355893801,-624.4701623,0.00043151,120]
[400317049,1767355893810,-482.0,0.00043151,120]
[400317050,1767355893819,-1052.0,0.00043151,120]
[400317051,1767355893828,-482.0,0.00043151,120]
[400317052,1767355893837,-1052.0,0.00043151,120]
[400317053,1767355893846,-482.0,0.00043151,120]
[400317054,1767355893855,-1052.0,0.00043151,120]
[400317055,1767355893864,-482.0,0.00043151,120]
[400317056,1767355893873,-1052.0,0.00043151,120]
[400317057,1767355893883,-1052.0,0.00043151,120]
[400317058,1767355893892,-1052.0,0.00043151,120]
[400317059,1767355893901,-482.0,0.00043151,120]
[400317060,1767355893910,-1052.0,0.00043151,120]
[400317061,1767355893919,-482.0,0.00043151,120]
[400317062,1767355893928,-1064.0,0.00043151,120]
[400317063,1767355893938,-482.0,0.00043151,120]
[400317064,1767355893947,-486.74434608,0.00043151,120]
[400317065,1767355893957,-500.0,0.00043151,120]
[400317066,1767355893967,-500.0,0.00043151,120]
[400317067,1767355893976,-237.71452459,0.00043151,120]
[400317068,1767355893986,-150.0,0.00043151,120]
[400317069,1767355893996,-150.0,0.00043151,120]
[400317070,1767355894005,-156.61827248,0.00043151,120]
[400317071,1767355894018,-150.0,0.00043151,120]
[400317072,1767355894028,-500.0,0.00043151,120]
[400317073,1767355894037,-500.0,0.00043151,120]
[400317074,1767355894048,-500.0,0.00043151,120]
[400317075,1767355894058,-150.0,0.00043151,120]
[400317076,1767355894068,-500.0,0.00043151,120]
[400317077,1767355894078,-500.0,0.00043151,120]
[400317078,1767355894088,-206.95125696,0.00043151,120]
[400317079,1767355894098,-500.0,0.00043151,120]
[400317080,1767355894107,-333.26146179,0.00043151,120]
[400317081,1767355894116,-499.15540549,0.00043151,120]
[400317082,1767355894125,-150.0,0.00043151,2]
[400317083,1767355894134,-500.0,0.00043151,120]
[400317084,1767355894143,-150.0,0.00043151,2]
[400317085,1767355894152,-500.0,0.00043151,120]
[400317086,1767355894161,-500.0,0.00043151,120]
[400317087,1767355894170,-627.0,0.00043151,120]
[400317088,1767355894180,-447.0,0.00043151,120]
[400317089,1767355894189,-500.0,0.00043151,120]
[400317090,1767355894198,-627.0,0.00043151,120]
[400317091,1767355894207,-447.0,0.00043151,120]
[400317092,1767355894217,-500.0,0.00043151,120]
[400317093,1767355894226,-627.0,0.00043151,120]
[400317094,1767355894236,-447.0,0.00043151,120]
[400317095,1767355894246,-500.0,0.00043151,120]
[400317096,1767355894255,-627.0,0.00043151,120]
[400317097,1767355894265,-447.0,0.00043151,120]
[400317098,1767355894274,-500.0,0.00043151,120]
[400317099,1767355894285,-627.0,0.00043151,120]
[400317100,1767355894295,-447.0,0.00043151,120]
[400317101,1767355894304,-500.0,0.00043151,120]
[400317102,1767355894313,-627.0,0.00043151,120]
[400317103,1767355894323,-500.0,0.00043151,120]
[400317104,1767355894332,-447.0,0.00043151,120]
[400317105,1767355894341,-627.0,0.00043151,120]
[400317106,1767355894351,-500.0,0.00043151,120]
[400317107,1767355894360,-447.0,0.00043151,120]
[400317108,1767355894369,-500.0,0.00043151,120]
[400317109,1767355894378,-627.0,0.00043151,120]
[400317110,1767355894387,-447.0,0.00043151,120]
[400317111,1767355894396,-500.0,0.00043151,120]
[400317112,1767355894405,-447.0,0.00043151,120]
[400317113,1767355894415,-627.0,0.00043151,120]
[400317114,1767355894424,-252.99852729,0.00043151,120]
[400317115,1767355894435,-627.0,0.00043151,120]
[400317116,1767355894445,-447.0,0.00043151,120]
[400317117,1767355894454,-150.0,0.00043151,2]
[400317118,1767355894463,-447.0,0.00043151,120]
[400317119,1767355894472,-627.0,0.00043151,120]
[400317120,1767355894481,-447.0,0.00043151,120]
[400317121,1767355894491,-627.0,0.00043151,120]
[400317122,1767355894501,-447.0,0.00043151,120]
[400317123,1767355894510,-447.0,0.00043151,120]
[400317124,1767355894519,-447.0,0.00043151,120]
[400317125,1767355894530,-627.0,0.00043151,120]
[400317126,1767355894539,-627.0,0.00043151,120]
[400317127,1767355894549,-627.0,0.00043151,120]
[400317128,1767355894559,-447.0,0.00043151,120]
[400317129,1767355894569,-627.0,0.00043151,120]
[400317130,1767355894579,-627.0,0.00043151,120]
[400317131,1767355894588,-447.0,0.00043151,120]
[400317132,1767355894599,-627.0,0.00043151,120]
[400317133,1767355894609,-447.0,0.00043151,120]
[400317134,1767355894619,-627.0,0.00043151,120]
[400317135,1767355894628,-447.0,0.00043151,120]
[400317136,1767355894637,-627.0,0.00043151,120]
[400317137,1767355894646,-447.0,0.00043151,120]
[400317138,1767355894656,-627.0,0.00043151,120]
[400317139,1767355894665,-447.0,0.00043151,120]
[400317140,1767355894675,-627.0,0.00043151,120]
[400317141,1767355894685,-447.0,0.00043151,120]
[400317142,1767355894694,-627.0,0.00043151,120]
[400317143,1767355894703,-447.0,0.00043151,120]
[400317144,1767355894712,-650.7275769,0.00043151,120]
[400317145,1767355894722,-458.74820379,0.00043151,120]
[400317146,1767355894732,-1197.0,0.00043156,19]
[400317147,1767355894741,-10959.87,0.0004316,30]
[400317148,1767355894750,-1385.07090544,0.0004316,30]
[400317149,1767355894759,-152.393141,0.00043164,30]
[400317150,1767355894768,-502.0,0.00043166,30]
[400317151,1767355894777,-262.0,0.00043169,100]
[400317152,1767355894787,-484.96260319,0.00043169,7]
[400317153,1767355894797,-1592.717884,0.0004317,120]
[400317154,1767355894806,-700.0,0.0004317,3]
[400317155,1767355894817,-700.0,0.0004317,3]
[400317156,1767355894827,-700.0,0.0004317,3]
[400317157,1767355894836,-700.0,0.0004317,3]
[400317158,1767355894845,-700.0,0.0004317,3]
[400317159,1767355894854,-700.0,0.0004317,3]
[400317160,1767355894864,-700.0,0.0004317,3]
[400317161,1767355894875,-1100.0,0.0004317,3]
[400317162,1767355894884,-176.05437931,0.0004317,60]
[400317163,1767355894893,-164.31742069,0.0004317,60]
[400317164,1767355894903,-246.47613103,0.0004317,60]
[400317165,1767355894916,-800.0,0.00043172,16]
[400317166,1767355894926,-800.0,0.00043172,16]
[400317167,1767355894934,-800.0,0.00043172,16]
[400317168,1767355894945,-800.0,0.00043172,16]
[400317169,1767355894955,-800.0,0.00043172,16]
[400317170,1767355894965,-800.0,0.00043172,16]
[400317171,1767355894975,-800.0,0.00043172,16]
[400317172,1767355894985,-579.88707915,0.00043172,16]
[400317173,1767355894999,-800.0,0.00043172,16]
[400317174,1767355895010,-800.0,0.00043172,16]
[400317175,1767355895020,-800.0,0.00043172,16]
[400317176,1767355895037,-800.0,0.00043172,16]
[400317177,1767355895046,-800.0,0.00043172,16]
[400317178,1767355895170,-800.0,0.00043172,16]
[400317179,1767355895179,-800.0,0.00043172,16]
[400317180,1767355895188,-800.0,0.00043172,16]
[400317181,1767355895198,-701.0,0.00043173,30]
[400317182,1767355895207,-2000.0,0.00043177,30]
[400317183,1767355895217,-474.0,0.00043193,30]
[400317184,1767355895227,-400.0,0.00043193,50]
[400317185,1767355895236,-50000.0,0.00043223,40]
[400317186,1767355895246,-50000.0,0.00043223,41]
[400317187,1767355895255,-50000.0,0.00043223,42]
[400317188,1767355895264,-50000.0,0.00043223,43]
[400317189,1767355895274,-50000.0,0.00043223,44]
[400317190,1767355895283,-172.36,0.00043224,60]
[400317191,1767355895293,-23254301.3299992,0.00043224,7]
[400317192,1767355895302,-1300.4074351,0.00043224,2]
[400317193,1767355895312,-504.90213452,0.00043224,7]
[400317194,1767355895320,-1955609.3515355,0.00043224,7]
[400317195,1767355895330,-891.66873065,0.00043224,2]
[400317196,1767355895340,-39157.9824259,0.00043224,2]
[400317197,1767355895350,-1826748.65780459,0.00043224,7]
[400317198,1767355895359,-1101578.08674323,0.00043224,7]
[400317199,1767355895369,-1813747.30903156,0.00043224,7]
[400317200,1767355895923,-151.0,0.00015715,2]
[400317201,1767355895933,-8804.45808948,0.00015875,2]
[400317202,1767355895945,-2074.20348371,0.00015875,2]
[400317203,1767355895953,-300.0,0.00038917,2]
[400317204,1767355895963,-673.09651628,0.00043224,7]
[400317205,1767355896742,154.17,7.273e-05,2]
[400317206,1767356163754,171.0,8.3e-07,2]
[400317207,1767356223460,6377.31982048,0.0002,30]
[400317216,1767357031829,-343.24244796,0.00015716,2]
[400317217,1767357031884,-500.0,0.00015716,2]
[400317218,1767357031940,-688.72,0.00015716,2]
[400317219,1767357031998,-592.41736304,0.00015716,2]
[400317220,1767357032008,-38.3360327,0.00015795,2]
[400317221,1767357032019,-291.3639673,0.00015795,2]
[400317222,1767357032029,-208.0,0.00016,2]
[400317223,1767357032038,-197.97038436,0.00016,2]
[400317224,1767357032050,-302.02961564,0.00016,2]
[400317225,1767357032059,-859.8756,0.00016017,2]
[400317226,1767357032069,-495.9958,0.00016017,2]
[400317227,1767357032078,-270.12251144,0.00016038,2]
[400317228,1767357032088,-907.99108783,0.00016038,2]
[400317229,1767357032098,-3519.04158927,0.00016038,2]
[400317247,1767357037878,-2439.91042384,0.00016038,2]
[400317248,1767357037934,-615.21547425,0.00016038,2]
[400317249,1767357038109,-16.81825839,0.00016038,2]
[400317250,1767357038118,-162.0912216,0.00016038,2]
[400317251,1767357038128,-216.89191973,0.00016116,2]
[400317252,1767357038138,-500.0,0.00016116,2]
[400317253,1767357038148,-246.17155011,0.00016116,2]
[400317258,1767357039977,-258.96807383,0.00016116,2]
[400317259,1767357040192,-81.41932989,0.00016116,2]
[400317260,1767357040201,-377.45380875,0.00016117,2]
[400317261,1767357040213,-3521.92599928,0.00016117,2]
[400317262,1767357040224,-853.42086176,0.00016117,2]
[400317263,1767357040236,-979.27733888,0.00016117,2]
[400317264,1767357040247,-4699.58179193,0.00016117,2]
[400317265,1767357040298,-6426.99855979,0.00016117,2]
[400317342,1767357044155,-451.48161316,0.00016117,2]
[400317344,1767357044284,-28.68143641,0.00016117,2]
[400317356,1767357045885,-1344.0224196,0.00016117,2]
[400317359,1767358183204,201.824525,0.00030136,120]
[400317360,1767358229475,451.37,0.00013699,2]
[400317371,1767358232001,-250.0,0.00015795,10]
[400317378,1767358232059,-1825.06357538,0.00015795,10]
[400317380,1767358232071,-696.11200438,0.00015795,10]
[400317382,1767358232082,-320.65660765,0.00015795,10]
[400317383,1767358232093,-625.6194234,0.00015795,10]
[400317384,1767358232108,-709.86418942,0.00015795,10]
[400317385,1767358232170,-878.94188727,0.00015795,10]
[400317386,1767358232182,-2215.38478634,0.00015795,10]
[400317387,1767358232227,-821.9387104,0.00015795,10]
[400317388,1767358232239,-520.5726,0.00015795,10]
[400317389,1767358232251,-787.40921576,0.00015795,10]
[400317390,1767358232260,-753.69560261,0.00015917,2]
[400317391,1767358232272,-544.24197463,0.00015917,2]
[400317392,1767358232282,-955.4655682,0.00015917,2]
[400317393,1767358232293,-1032.00616953,0.00015917,2]
[400317402,1767358238063,-3107.499998,0.00015917,2]
[400317403,1767358238075,-15471.13448912,0.00015917,2]
[400317404,1767358238086,-1204.62291217,0.00015917,2]
[400317405,1767358238117,-457.1460058,0.00015917,2]
[400317432,1767358240404,-10720.65,0.00015917,2]
[400317523,1767358854542,158.0,0.000301,120]
[400317524,1767358864192,158.0,0.000301,120]
[400317525,1767358894116,158.0,0.000301,120]
[400317530,1767359354109,-175.05,0.00011351,2]
[400317535,1767359432160,-175.05,0.00015135,2]
[400317536,1767359432170,-276.0,0.00015135,2]
[400317537,1767359432181,-91.57433888,0.00015599,2]
[400317538,1767359432217,-172.18566112,0.00015599,2]
[400317539,1767359432227,-1518.54391966,0.00015817,2]
[400317540,1767359432272,-1611.81509603,0.00015817,2]
[400317541,1767359432284,-1785.62710816,0.00015817,2]
[400317542,1767359432297,-4176.66912919,0.00015817,2]
[400317543,1767359432437,-15476.56452804,0.00015817,2]
[400317544,1767359432449,-265.89616628,0.00015817,2]
[400317545,1767359432465,-523.0,0.00015817,2]
[400317546,1767359432477,-1900.38185097,0.00015817,2]
[400317714,1767359438294,-421.96926458,0.00015817,2]
[400317715,1767359438351,-3559.73476931,0.00015817,2]
[400317716,1767359438362,-457.22677274,0.00015817,2]
[400317717,1767359438373,-1547.38760777,0.00015817,2]
[400317718,1767359438384,-345.70008883,0.00015817,2]
[400317769,1767359440283,-11997.74518315,0.00015817,2]
[400317770,1767359440294,-1339.99496718,0.00015817,2]
[400317771,1767359440307,-588.0,0.00015817,2]
[400317772,1767359440320,-306.069,0.00015817,2]
[400317773,1767359440343,-580.65074392,0.00015817,2]
[400317774,1767359440353,-512.27802841,0.00015817,2]
[400317775,1767359440364,-6443.11814217,0.00015817,2]
[400317776,1767359440375,-1237.76017604,0.00015817,2]
[400317777,1767359440386,-549.76957592,0.00015817,2]
[400317778,1767359440560,-3045.0,0.00015817,2]
[400317779,1767359440571,-4466.49254007,0.00015817,2]
[400317780,1767359440584,-4175.11494527,0.00015817,2]
[400317782,1767359440668,-1043.55465848,0.00015817,2]
[400317806,1767359443793,155.0,0.00030137,120]
[400317813,1767359444029,-1870.80599546,0.00015817,2]
[400317814,1767359444043,-637.30701203,0.00015817,2]
[400317815,1767359444059,-1035.94218875,0.00015817,2]
[400317816,1767359444071,-1014.09508778,0.00015817,2]
[400317817,1767359444084,-633.92371775,0.00015817,2]
[400317818,1767359444096,-2348.81410111,0.00015817,2]
[400317819,1767359444126,-16015.93271301,0.00015817,2]
[400317820,1767359444938,-2279.70584383,0.00015817,2]
[400317821,1767359444949,-1738.0,0.00015817,2]
[400317822,1767359444960,-502.99139351,0.00015817,2]
[400317823,1767359444993,-257.55700406,0.00015817,2]
[400317862,1767359446508,-292.50000001,0.00015817,2]
[400317863,1767359641985,150.0,0.00030137,120]
[400317953,1767360413143,-678.20018512,0.00015717,2]
[400317969,1767360631351,-158.28890644,0.00015617,2]
[400317970,1767360631363,-666.54109356,0.00015617,2]
[400317972,1767360631375,-477.97880591,0.00015617,2]
[400317974,1767360631392,-4588.46274898,0.00015617,2]
[400317975,1767360631404,-442.8955651,0.00015617,2]
[400317976,1767360631415,-32086.11415061,0.00015717,2]
[400317977,1767360631427,-1794.47750331,0.00015717,2]
[400317978,1767360631443,-282.33286881,0.00015717,2]
[400317979,1767360631466,-2354.96308394,0.00015717,2]
[400317980,1767360631478,-2471.96661148,0.00015717,2]
[400317981,1767360631490,-10166.86229932,0.00015717,2]
[400317982,1767360631502,-1060.92728506,0.00015717,2]
[400317983,1767360631521,-344.81,0.00015717,2]
[400317984,1767360631533,-860.0,0.00015717,2]
[400317985,1767360631545,-1342.64096061,0.00015717,2]
[400317986,1767360631558,-2010.45162671,0.00015717,2]
[400317987,1767360631570,-3124.78462949,0.00015717,2]
[400317988,1767360631582,-990.02398659,0.00015717,2]
[400317990,1767360637436,-2013.79722845,0.00015717,2]
[400317991,1767360637491,-1443.45977058,0.00015717,2]
[400317992,1767360637503,-2306.1225654,0.00015717,2]
[400317993,1767360637515,-30868.43746983,0.00015717,2]
[400317994,1767360637527,-1927.94999992,0.00015717,2]
[400318202,1767360639567,-3828.86735665,0.00015717,2]
[400318205,1767360639579,-5678.50813704,0.00015717,2]
[400318208,1767360639591,-269.53023992,0.00015717,2]
[400318212,1767360639625,-644.20590704,0.00015717,2]
[400318215,1767360639638,-2804.34681683,0.00015717,2]
[400318226,1767360639736,-1375.598704,0.00015717,2]
[400318228,1767360639749,-1759.8369796,0.00015717,2]
[400318396,1767360643212,-75.35557615,0.00015717,2]
[400318417,1767360646488,735.14840768,0.00014254,5]
[400318418,1767360646519,2366.54674354,0.00014254,5]
[400318419,1767360766103,6464.63,0.00030137,120]
[400318420,1767361507534,1976.450204,7.945e-05,2]
[400318427,1767361831520,-423.15237356,0.00013699,2]
[400318428,1767361831542,-35.92762644,0.00013699,2]
[400318429,1767361831552,-158.28890635,0.00015517,2]
[400318430,1767361831562,-1705.6313808,0.000156,2]
[400318431,1767361831572,-300.0,0.00015615,2]
[400318432,1767361831581,-300.0,0.00015615,2]
[400318433,1767361831591,-1200.0,0.00015615,2]
[400318434,1767361831601,-500.0,0.00015616,2]
[400318435,1767361831610,-244.50208641,0.00015616,2]
[400318436,1767361831622,-255.49791359,0.00015616,2]
[400318437,1767361831633,-500.0,0.00015616,2]
[400318438,1767361831643,-500.0,0.00015616,2]
[400318439,1767361831652,-500.0,0.00015616,2]
[400318440,1767361831661,-500.0,0.00015616,2]
[400318441,1767361831672,-500.0,0.00015616,2]
[400318442,1767361831686,-500.0,0.00015616,2]
[400318443,1767361831695,-500.0,0.00015616,2]
[400318444,1767361831704,-500.0,0.00015616,2]
[400318445,1767361831714,-500.0,0.00015616,2]
[400318446,1767361831725,-500.0,0.00015616,2]
[400318447,1767361831735,-300.0,0.00015616,2]
[400318448,1767361831744,-29006.1397871,0.00015617,2]
[400318449,1767361831758,-287.06431718,0.00015617,2]
[400318450,1767361831769,-14843.72171235,0.00015617,2]
[400318451,1767361831781,-622.55672686,0.00015617,2]
[400318452,1767361831800,-254.72572641,0.00015617,2]
[400318453,1767361831812,-472.78200901,0.00015617,2]
[400318454,1767361831823,-3513.22526362,0.00015617,2]
[400318455,1767361837602,-358.33485164,0.00015617,2]
[400318456,1767361837614,-2615.92995068,0.00015617,2]
[400318457,1767361837666,-672.65078649,0.00015617,2]
[400318458,1767361837679,-1221.26746359,0.00015617,2]
[400318459,1767361837692,-98807.39937602,0.00015617,2]
[400318460,1767361837703,-2378.32559617,0.00015617,2]
[400318461,1767361837714,-1540.52182107,0.00015617,2]
[400318462,1767361837776,-1925.55000032,0.00015617,2]
[400318463,1767361837787,-254.18043806,0.00015617,2]
[400318573,1767361840106,-447.43499868,0.00015617,2]
[400318578,1767361843329,-15.00542502,0.00015617,2]
[400318579,1767361845749,-10098.0,0.00015617,2]
[400318585,1767362267993,901.8,9.587e-05,2]
[400318586,1767362268338,901.8,0.00010091,2]
[400318587,1767362268618,901.8,0.00010596,2]
[400318590,1767362815144,-241.0,0.000111,2]
[400318592,1767362962102,-901.8,0.000111,2]
[400318593,1767362962124,-268.0456,0.00011605,2]
[400318604,1767363031769,-633.7544,0.00011605,2]
[400318605,1767363031780,-901.8,0.00012109,2]
[400318606,1767363031790,-901.8,0.00012614,2]
[400318607,1767363031800,-901.8,0.00013118,2]
[400318608,1767363031809,-901.8,0.00013623,2]
[400318609,1767363031819,-166.66,0.00013924,2]
[400318610,1767363031828,-901.8,0.00014128,2]
[400318611,1767363031838,-166.66,0.00014217,2]
[400318612,1767363031848,-166.66,0.0001451,2]
[400318613,1767363031857,-901.8,0.00014632,2]
[400318614,1767363031867,-166.66,0.00014803,2]
[400318615,1767363031877,-166.66,0.00015096,2]
[400318616,1767363031886,-103.10645204,0.00015136,2]
[400318617,1767363031899,-376.89354796,0.00015136,2]
[400318618,1767363031912,-901.8,0.00015137,2]
[400318619,1767363031922,-157.97,0.00015262,2]
[400318620,1767363031931,-500.0,0.00015334,2]
[400318621,1767363031940,-500.0,0.00015334,2]
[400318622,1767363031949,-150.0,0.00015334,2]
[400318623,1767363031958,-262.44680414,0.00015334,2]
[400318624,1767363031970,-237.55319586,0.00015334,2]
[400318625,1767363031980,-150.0,0.00015334,2]
[400318626,1767363031992,-150.0,0.00015334,2]
[400318627,1767363032002,-150.0,0.00015334,2]
[400318628,1767363032011,-150.0,0.00015334,2]
[400318629,1767363032020,-500.0,0.00015334,2]
[400318630,1767363032029,-150.0,0.00015334,2]
[400318631,1767363032039,-150.0,0.00015334,2]
[400318632,1767363032048,-166.66,0.0001539,2]
[400318633,1767363032058,-500.0,0.00015471,2]
[400318634,1767363032067,-349.58251824,0.00015471,2]
[400318635,1767363032079,-150.41748176,0.00015471,2]
[400318636,1767363032088,-150.0,0.00015471,2]
[400318637,1767363032101,-475.90692469,0.00015471,2]
[400318638,1767363032112,-24.09307531,0.00015471,2]
[400318639,1767363032122,-150.0,0.00015471,2]
[400318640,1767363032132,-371.25708367,0.00015471,2]
[400318641,1767363032147,-130.74291633,0.00015471,2]
[400318642,1767363032157,-235.01856769,0.00015471,2]
[400318643,1767363032166,-5558.29039224,0.00015501,2]
[400318644,1767363032175,-178.78407963,0.00015501,2]
[400318645,1767363032185,-151.0,0.00015508,2]
[400318646,1767363032194,-151.0,0.00015508,2]
[400318647,1767363032203,-151.0,0.00015508,2]
[400318648,1767363032213,-151.0,0.00015508,2]
[400318649,1767363032226,-200.0,0.00015508,2]
[400318650,1767363032236,-151.0,0.00015508,2]
[400318651,1767363032246,-151.0,0.00015508,2]
[400318652,1767363032255,-151.0,0.00015508,2]
[400318653,1767363032265,-151.0,0.00015508,2]
[400318654,1767363032275,-151.0,0.00015508,2]
[400318655,1767363032284,-151.0,0.00015508,2]
[400318656,1767363032294,-151.0,0.00015508,2]
[400318657,1767363032307,-200.0,0.00015508,2]
[400318658,1767363032317,-165.4969409,0.00015513,2]